bitfinex/quotes_BTCUSD_20250916
["timestamp","ask_amount","ask_price","bid_price","bid_amount"]
[1758054822562,0.00198001,116900.0,116890.0,1.38103859]
[1758054824639,0.00198001,116900.0,116890.0,1.38403859]
[1758054825472,1e-08,116900.0,116890.0,1.38403859]
[1758054833952,0.00198001,116900.0,116890.0,0.73034838]
[1758054834147,0.02303001,116900.0,116890.0,0.99730838]
[1758054834379,0.00198001,116900.0,116890.0,0.73237838]
[1758054834518,0.00198001,116900.0,116890.0,0.99933838]
[1758054834723,0.00198001,116900.0,116890.0,0.99726838]
[1758054834956,0.02303001,116900.0,116890.0,0.99726838]
[1758054836117,0.02303001,116900.0,116890.0,0.73034838]
[1758054836348,0.02303001,116900.0,116890.0,1.35505859]
[1758054836622,0.02303001,116900.0,116890.0,0.73034838]
[1758054836852,0.02303001,116900.0,116890.0,1.35505859]
[1758054837817,0.02303001,116900.0,116890.0,1.39988328]
[1758054840224,1e-08,116900.0,116890.0,1.40498328]
[1758054840428,1e-08,116900.0,116890.0,1.42767328]
[1758054840898,0.00198001,116900.0,116890.0,1.39980328]
[1758054841090,0.02303001,116900.0,116890.0,1.39980328]
[1758054841870,0.02303001,116900.0,116890.0,1.13296328]
[1758054842097,0.02303001,116900.0,116890.0,0.73034838]
[1758054842300,0.02494001,116900.0,116890.0,1.39976328]
[1758054842940,0.02303001,116900.0,116890.0,1.39976328]
[1758054843306,0.02303001,116900.0,116890.0,1.13296328]
[1758054843517,0.02303001,116900.0,116890.0,1.39976328]
[1758054846043,0.00198001,116900.0,116890.0,1.39976328]
[1758054846907,1e-08,116900.0,116890.0,1.42910328]
[1758054847120,1e-08,116900.0,116890.0,1.40508328]
[1758054847312,1e-08,116900.0,116890.0,1.42910328]
[1758054856870,1e-08,116900.0,116890.0,1.42902328]
[1758054865327,1e-08,116900.0,116890.0,1.02632838]
[1758054865538,1e-08,116900.0,116890.0,1.42894328]
[1758054865757,1e-08,116900.0,116890.0,0.75968838]
[1758054865969,1e-08,116900.0,116890.0,1.42894328]
[1758054866820,1e-08,116900.0,116890.0,1.16230328]
[1758054866963,1e-08,116900.0,116890.0,1.42894328]
[1758054867173,0.00198001,116900.0,116890.0,1.40173328]
[1758054867780,1e-08,116900.0,116890.0,1.42894328]
[1758054871595,1e-08,116900.0,116890.0,1.16230328]
[1758054871809,0.00198001,116900.0,116890.0,1.40165328]
[1758054872036,0.00198001,116900.0,116890.0,1.42567328]
[1758054872207,1e-08,116900.0,116890.0,1.42886328]
[1758054876319,0.00198001,116900.0,116890.0,1.42886328]
[1758054876549,0.00198001,116900.0,116890.0,1.42882328]
[1758054878170,0.00198001,116900.0,116890.0,1.16230328]
[1758054878382,0.00198001,116900.0,116890.0,1.02297838]
[1758054878592,0.00198001,116900.0,116890.0,1.42559328]
[1758054879741,0.00198001,116900.0,116890.0,1.15911328]
[1758054879912,0.00198001,116900.0,116890.0,1.42559328]
[1758054880350,0.00198001,116900.0,116890.0,1.13509328]
[1758054880575,0.00198001,116900.0,116890.0,0.70019648]
[1758054880576,0.1960264,116900.0,116890.0,0.70019648]
[1758054880776,0.1960264,116900.0,116890.0,1.34359738]
[1758054881037,0.1960264,116900.0,116890.0,1.37374928]
[1758054881661,0.02494001,116900.0,116890.0,1.37374928]
[1758054881906,0.1960264,116900.0,116890.0,1.36974928]
[1758054882139,0.02494001,116900.0,116890.0,1.37274928]
[1758054882870,0.02494001,116900.0,116890.0,1.37074928]
[1758054883098,0.02494001,116900.0,116890.0,1.37274928]
[1758054885120,0.02494001,116900.0,116890.0,1.28624783]
[1758054888858,0.1960264,116900.0,116890.0,0.88363293]
[1758054889051,0.1960264,116900.0,116890.0,1.28624783]
[1758054889301,0.1730664,116900.0,116890.0,1.28624783]
[1758054889550,0.02303001,116900.0,116890.0,1.28624783]
[1758054889738,0.1960264,116900.0,116890.0,1.28624783]
[1758054891633,0.1960264,116900.0,116890.0,1.31195102]
[1758054893457,0.02494001,116900.0,116890.0,1.31195102]
[1758054896632,0.1960264,116900.0,116890.0,1.31195102]
[1758054898394,0.1960264,116900.0,116890.0,0.98331102]
[1758054899628,0.02494001,116900.0,116890.0,0.98331102]
[1758054899845,0.02494001,116900.0,116890.0,0.93858317]
[1758054901597,1e-08,116900.0,116890.0,1.05410462]
[1758054904352,1e-08,116900.0,116890.0,1.45410462]
[1758054912101,1e-08,116900.0,116890.0,2.15199167]
[1758054912320,1e-08,116900.0,116890.0,1.79410462]
[1758054912725,1e-08,116900.0,116890.0,1.84410462]
[1758054913594,1e-08,116900.0,116890.0,2.25199167]
[1758054913892,1e-08,116900.0,116890.0,1.89434462]
[1758054916825,1e-08,116900.0,116890.0,1.89426462]
[1758054918479,1e-08,116900.0,116890.0,1.84426462]
[1758054918684,1e-08,116900.0,116890.0,1.89426462]
[1758054919733,1e-08,116900.0,116890.0,1.84426462]
[1758054919972,1e-08,116900.0,116890.0,1.89426462]
[1758054921266,1e-08,116900.0,116890.0,1.84426462]
[1758054921495,1e-08,116900.0,116890.0,1.89426462]
[1758054922972,1e-08,116900.0,116890.0,1.84426462]
[1758054923191,1e-08,116900.0,116890.0,1.89426462]
[1758054923332,1e-08,116900.0,116890.0,1.84426462]
[1758054923538,1e-08,116900.0,116890.0,1.89426462]
[1758054924632,1e-08,116900.0,116890.0,1.62762462]
[1758054924836,1e-08,116900.0,116890.0,1.89418462]
[1758054925866,1e-08,116900.0,116890.0,2.25207167]
[1758054926314,1e-08,116900.0,116890.0,2.20207167]
[1758054926509,1e-08,116900.0,116890.0,2.25199167]
[1758054931037,1e-08,116900.0,116890.0,2.20199167]
[1758054931282,1e-08,116900.0,116890.0,2.25199167]
[1758054931961,1e-08,116900.0,116890.0,1.89410462]
[1758054932913,1e-08,116900.0,116890.0,2.25199167]
[1758054934642,1e-08,116900.0,116890.0,2.20199167]
[1758054934888,1e-08,116900.0,116890.0,2.25199167]
[1758054935442,1e-08,116900.0,116890.0,2.25191167]
[1758054936293,1e-08,116900.0,116890.0,2.25187167]
[1758054936753,1e-08,116900.0,116890.0,2.20187167]
[1758054937051,1e-08,116900.0,116890.0,1.98551167]
[1758054937290,1e-08,116900.0,116890.0,2.15978462]
[1758054938770,1e-08,116900.0,116890.0,1.89342462]
[1758054938954,1e-08,116900.0,116890.0,2.15978462]
[1758054941415,1e-08,116900.0,116890.0,2.10978462]
[1758054941636,1e-08,116900.0,116890.0,2.15978462]
[1758054942552,1e-08,116900.0,116890.0,2.10978462]
[1758054942860,1e-08,116900.0,116890.0,2.15978462]
[1758054946048,1e-08,116900.0,116890.0,2.10978462]
[1758054946273,1e-08,116900.0,116890.0,2.15978462]
[1758054946485,1e-08,116900.0,116890.0,2.10978462]
[1758054946688,1e-08,116900.0,116890.0,2.15978462]
[1758054949974,4e-05,116920.0,116910.0,0.54122366]
[1758054950207,4e-05,116920.0,116910.0,1.60993947]
[1758054950387,4e-05,116920.0,116910.0,1.63985947]
[1758054950711,4e-05,116920.0,116910.0,2.03995947]
[1758054951379,4e-05,116920.0,116910.0,2.06665077]
[1758054951669,4e-05,116920.0,116910.0,2.06565077]
[1758054951890,0.00104,116920.0,116910.0,2.39429077]
[1758054952082,0.00104,116920.0,116910.0,2.39729077]
[1758054952223,4e-05,116920.0,116910.0,2.39729077]
[1758054952579,4e-05,116920.0,116910.0,2.39829077]
[1758054953238,4e-05,116920.0,116910.0,2.40839266]
[1758054954831,4e-05,116920.0,116910.0,2.14203266]
[1758054955044,4e-05,116920.0,116910.0,2.40843266]
[1758054956776,4e-05,116920.0,116910.0,2.49059266]
[1758054958393,4e-05,116920.0,116910.0,2.22419266]
[1758054958603,4e-05,116920.0,116910.0,2.49059266]
[1758054959342,4e-05,116920.0,116910.0,2.22419266]
[1758054959568,4e-05,116920.0,116910.0,2.49063266]
[1758054959889,4e-05,116920.0,116910.0,2.57945494]
[1758054960107,4e-05,116920.0,116910.0,2.31301494]
[1758054960322,4e-05,116920.0,116910.0,2.57941494]
[1758054960741,4e-05,116920.0,116910.0,2.31301494]
[1758054960953,0.00202,116920.0,116910.0,2.28309494]
[1758054961105,0.02307,116920.0,116910.0,2.14957494]
[1758054961538,0.00202,116920.0,116910.0,2.15163494]
[1758054961702,0.00202,116920.0,116910.0,2.17611494]
[1758054961912,0.00202,116920.0,116910.0,2.17908494]
[1758054962142,4e-05,116920.0,116910.0,2.17908494]
[1758054965091,4e-05,116920.0,116910.0,2.57908494]
[1758054971385,4e-05,116920.0,116910.0,2.31260494]
[1758054971581,4e-05,116920.0,116910.0,1.77456856]
[1758054971863,4e-05,116920.0,116910.0,2.57916494]
[1758054972050,4e-05,116920.0,116910.0,1.37456856]
[1758054972285,4e-05,116920.0,116910.0,2.17916494]
[1758054972793,4e-05,116920.0,116910.0,2.57916494]
[1758054976020,4e-05,116920.0,116910.0,2.17916494]
[1758054976719,4e-05,116920.0,116910.0,2.57916494]
[1758054987684,0.023,116940.0,116930.0,0.60349259]
[1758054987685,0.02185059,116940.0,116930.0,0.60349259]
[1758054987799,0.00080059,116940.0,116930.0,0.28769585]
[1758054988039,0.00207059,116940.0,116930.0,0.36985585]
[1758054988240,0.00207059,116940.0,116930.0,0.63637585]
[1758054988462,0.42541878,116940.0,116930.0,0.63637585]
[1758054988667,0.42541878,116940.0,116930.0,0.63647585]
[1758054988867,0.42641878,116940.0,116930.0,0.63647585]
[1758054989064,0.02412059,116940.0,116930.0,0.63647585]
[1758054989284,0.02512059,116940.0,116930.0,0.63647585]
[1758054990797,0.42741878,116940.0,116930.0,0.36995585]
[1758054991012,0.02512059,116940.0,116930.0,0.63647585]
[1758054993803,0.59844665,116940.0,116930.0,0.36995585]
[1758054994013,0.42741878,116940.0,116930.0,0.63647585]
[1758054997606,0.02512059,116940.0,116930.0,0.63647585]
[1758054997780,0.42741878,116940.0,116930.0,0.63647585]
[1758054997975,0.59844665,116940.0,116930.0,0.36995585]
[1758054998336,0.59844665,116940.0,116930.0,0.63639585]
[1758054999356,0.42741878,116940.0,116930.0,0.63639585]
[1758055000315,0.59844665,116940.0,116930.0,0.63639585]
[1758055002050,0.19614846,116940.0,116930.0,0.63639585]
[1758055002260,0.59844665,116940.0,116930.0,0.63639585]
[1758055002798,0.42741878,116940.0,116930.0,0.63639585]
[1758055004569,0.42741878,116940.0,116930.0,0.3788519]
[1758055004859,0.42741878,116940.0,116930.0,0.0001]
[1758055004860,1.00074484,116940.0,116930.0,0.0001]
[1758055005087,1.00676032,116940.0,116930.0,0.26666]
[1758055005324,1.00676032,116940.0,116930.0,0.26656]
[1758055005556,1.01018678,116940.0,116930.0,0.26656]
[1758055007358,0.1710425,116930.0,116920.0,0.0302519]
[1758055007569,0.57461069,116930.0,116920.0,0.2968119]
[1758055007772,0.59646069,116930.0,116920.0,0.2968119]
[1758055008191,0.62216009,116930.0,116920.0,0.2968119]
[1758055011905,0.62816685,116930.0,116920.0,0.2968119]
[1758055012111,0.62816685,116930.0,116920.0,0.2967719]
[1758055013226,0.70866154,116930.0,116920.0,0.2967719]
[1758055014274,0.62216009,116930.0,116920.0,0.2967719]
[1758055016956,0.62416009,116930.0,116920.0,0.2967719]
[1758055017894,0.62616009,116930.0,116920.0,0.2967719]
[1758055019892,0.2238619,116930.0,116920.0,0.2967719]
[1758055020106,0.2230619,116930.0,116920.0,0.2967719]
[1758055020448,0.2238619,116930.0,116920.0,0.2967719]
[1758055020866,0.004,116930.0,116920.0,0.83081411]
[1758055021073,0.004,116930.0,116920.0,0.85517411]
[1758055021465,0.00527,116930.0,116920.0,0.85517411]
[1758055021667,0.00527,116930.0,116920.0,0.46979903]
[1758055021932,0.00527,116930.0,116920.0,0.82760411]
[1758055022166,0.00517,116930.0,116920.0,0.82760411]
[1758055022536,0.1972625,116930.0,116920.0,0.82563411]
[1758055023553,0.02622,116930.0,116920.0,0.82563411]
[1758055024763,0.1972625,116930.0,116920.0,0.82563411]
[1758055026468,0.02622,116930.0,116920.0,0.82563411]
[1758055027893,0.02622,116930.0,116920.0,0.46774903]
[1758055028141,0.02622,116930.0,116920.0,0.82555411]
[1758055030670,0.1972625,116930.0,116920.0,0.82555411]
[1758055031147,0.1972625,116930.0,116920.0,0.20130903]
[1758055031330,0.1972625,116930.0,116920.0,0.46774903]
[1758055032094,0.1980625,116930.0,116920.0,0.46774903]
[1758055035802,0.1770125,116930.0,116920.0,0.46774903]
[1758055036050,0.1980625,116930.0,116920.0,0.0302519]
[1758055036866,0.1980625,116930.0,116920.0,0.2966919]
[1758055037683,0.1980625,116930.0,116920.0,0.46774903]
[1758055038833,0.1980625,116930.0,116920.0,0.0302519]
[1758055039150,0.1980625,116930.0,116920.0,0.46774903]
[1758055041304,0.1980625,116930.0,116920.0,0.0302519]
[1758055041528,0.1980625,116930.0,116920.0,0.2966519]
[1758055045018,0.1980625,116930.0,116920.0,0.46770903]
[1758055046885,0.02702,116930.0,116920.0,0.46770903]
[1758055047101,0.1980625,116930.0,116920.0,0.46770903]
[1758055049203,0.20407754,116930.0,116920.0,0.46770903]
[1758055056836,0.03223504,116930.0,116920.0,0.46770903]
[1758055057091,0.02622,116930.0,116920.0,0.46770903]
[1758055057277,0.1972625,116930.0,116920.0,0.46770903]
[1758055057475,0.20327754,116930.0,116920.0,0.46770903]
[1758055058434,0.0039,116930.0,116920.0,0.47299903]
[1758055058573,0.0039,116930.0,116920.0,0.49628903]
[1758055059799,0.00517,116930.0,116920.0,0.47299903]
[1758055060757,0.0039,116930.0,116920.0,0.47299903]
[1758055060958,0.0039,116930.0,116920.0,0.49628903]
[1758055062956,0.0039,116930.0,116920.0,0.83080411]
[1758055063186,0.0039,116930.0,116920.0,0.85409411]
[1758055070015,0.0039,116930.0,116920.0,0.22988903]
[1758055070267,0.0039,116930.0,116920.0,0.85409411]
[1758055070480,0.0039,116930.0,116920.0,0.83080411]
[1758055070703,0.0039,116930.0,116920.0,1.29840064]
[1758055070912,0.0039,116930.0,116920.0,0.94059556]
[1758055071125,0.00382538,116930.0,116920.0,0.96628996]
[1758055071745,0.002,116930.0,116920.0,0.96628996]
[1758055072215,0.001,116930.0,116920.0,0.96628996]
[1758055072425,0.58848389,116960.0,116950.0,0.17101325]
[1758055072673,0.58975389,116960.0,116950.0,0.43741325]
[1758055072899,0.58975389,116960.0,116950.0,0.43751325]
[1758055073645,0.58975389,116960.0,116950.0,0.43759351]
[1758055074083,0.59275389,116960.0,116950.0,0.43759351]
[1758055074292,0.57671455,116960.0,116950.0,0.43759351]
[1758055074422,0.57671455,116960.0,116950.0,0.26658026]
[1758055074622,0.57971455,116960.0,116950.0,0.26658026]
[1758055075885,0.57971455,116960.0,116950.0,0.43759351]
[1758055076547,0.57971455,116960.0,116950.0,0.26658026]
[1758055076861,0.57971455,116960.0,116950.0,0.43759351]
[1758055077551,0.57961805,116960.0,116950.0,0.43759351]
[1758055078290,0.23961805,116960.0,116950.0,0.43759351]
[1758055078820,0.21856805,116960.0,116950.0,0.46774541]
[1758055079014,0.19287365,116960.0,116950.0,0.46974541]
[1758055080093,0.21392365,116960.0,116950.0,0.46774541]
[1758055080769,0.21392365,116960.0,116950.0,0.03033216]
[1758055080983,0.21472365,116960.0,116950.0,0.29669216]
[1758055081303,0.20870856,116960.0,116950.0,0.03033216]
[1758055081569,0.57251673,116960.0,116950.0,0.29669216]
[1758055081795,0.61704098,116960.0,116950.0,0.29669216]
[1758055082233,0.61103789,116960.0,116950.0,0.29669216]
[1758055083636,0.61103789,116960.0,116950.0,0.03033216]
[1758055083856,0.61103789,116960.0,116950.0,0.29669216]
[1758055085275,0.20790856,116960.0,116950.0,0.29669216]
[1758055085470,0.00604,116960.0,116950.0,0.49541541]
[1758055085750,0.17703863,116960.0,116950.0,0.89774474]
[1758055085990,0.17703863,116960.0,116950.0,0.49541541]
[1758055086212,0.17830863,116960.0,116950.0,0.72673149]
[1758055086435,0.60248796,116960.0,116950.0,0.03033216]
[1758055086622,0.60248796,116960.0,116950.0,0.29669216]
[1758055086856,0.60849003,116960.0,116950.0,0.03033216]
[1758055087103,0.60849003,116960.0,116950.0,0.29669216]
[1758055087296,0.60849003,116960.0,116950.0,0.03033216]
[1758055089967,0.87485094,116960.0,116950.0,0.03033216]
[1758055090397,0.87485094,116960.0,116950.0,0.00018026]
[1758055090732,0.90054572,116960.0,116950.0,0.00018026]
[1758055091296,1.07354862,116960.0,116950.0,0.00018026]
[1758055091468,1.41354862,116960.0,116950.0,0.00018026]
[1758055091709,1.42955928,116960.0,116950.0,0.00018026]
[1758055092583,1.83188861,116960.0,116950.0,0.00018026]
[1758055092775,1.42955928,116960.0,116950.0,8.026e-05]
[1758055092982,1.83188861,116960.0,116950.0,8.026e-05]
[1758055093198,1.42955928,116960.0,116950.0,8.026e-05]
[1758055095948,1.42956229,116960.0,116950.0,8.026e-05]
[1758055099005,1.16320229,116960.0,116950.0,8.026e-05]
[1758055099217,1.42960229,116960.0,116950.0,8.026e-05]
[1758055101931,1.42964229,116960.0,116950.0,8.026e-05]
[1758055102365,1.4296383,116960.0,116950.0,8.026e-05]
[1758055105287,1.42623963,116960.0,116950.0,8.026e-05]
[1758055107718,1.15979963,116960.0,116950.0,8.026e-05]
[1758055107895,1.42623963,116960.0,116950.0,8.026e-05]
[1758055109184,1.42619963,116960.0,116950.0,8.026e-05]
[1758055109659,1.15979963,116960.0,116950.0,8.026e-05]
[1758055109856,1.42619963,116960.0,116950.0,8.026e-05]
[1758055111240,1.07329818,116960.0,116950.0,8.026e-05]
[1758055111454,1.33969711,116960.0,116950.0,8.026e-05]
[1758055113643,1.07329711,116960.0,116950.0,8.026e-05]
[1758055113824,1.33969711,116960.0,116950.0,8.026e-05]
[1758055114900,1.07329711,116960.0,116950.0,8.026e-05]
[1758055115112,1.33969711,116960.0,116950.0,8.026e-05]
[1758055115936,1.42619856,116960.0,116950.0,8.026e-05]
[1758055117010,1.15979856,116960.0,116950.0,8.026e-05]
[1758055117261,1.42619856,116960.0,116950.0,8.026e-05]
[1758055119306,1.15979856,116960.0,116950.0,8.026e-05]
[1758055119520,1.42619856,116960.0,116950.0,8.026e-05]
[1758055121893,1.15979856,116960.0,116950.0,8.026e-05]
[1758055122102,1.42619856,116960.0,116950.0,8.026e-05]
[1758055135524,1.40418697,116960.0,116950.0,8.026e-05]
[1758055135734,1.42624572,116960.0,116950.0,8.026e-05]
[1758055139862,1.15984572,116960.0,116950.0,8.026e-05]
[1758055140053,1.42624572,116960.0,116950.0,8.026e-05]
[1758055141559,1.42624652,116960.0,116950.0,8.026e-05]
[1758055142045,0.64789574,116960.0,116950.0,0.00527026]
[1758055142300,1.27205726,116960.0,116950.0,0.02953026]
[1758055142505,1.27205628,116960.0,116950.0,0.02953026]
[1758055144451,1.27332628,116960.0,116950.0,0.02642026]
[1758055144671,1.00565628,116960.0,116950.0,0.02941026]
[1758055144825,1.27205628,116960.0,116950.0,0.02941026]
[1758055145651,1.35855773,116960.0,116950.0,0.02941026]
[1758055146501,1.35855773,116960.0,116950.0,0.02938194]
[1758055146706,1.27205628,116960.0,116950.0,0.02938194]
[1758055150132,0.64789476,116960.0,116950.0,0.02938194]
[1758055150989,0.91425476,116960.0,116950.0,0.02938194]
[1758055151716,0.91425476,116960.0,116950.0,0.02948194]
[1758055152363,0.22139331,116960.0,116950.0,0.02948194]
[1758055152584,0.19569853,116960.0,116950.0,0.02948194]
[1758055154395,0.1796562,116960.0,116950.0,0.02948194]
[1758055155182,0.53741772,116960.0,116950.0,0.02948194]
[1758055155679,0.56311205,116960.0,116950.0,0.02948194]
[1758055155896,0.20535053,116960.0,116950.0,0.02948194]
[1758055157886,0.20535053,116960.0,116950.0,0.20049519]
[1758055157887,0.0343519,116960.0,116950.0,0.20049519]
[1758055158118,0.17363996,116960.0,116950.0,0.23064709]
[1758055158387,0.17363996,116960.0,116950.0,0.58840861]
[1758055158604,0.17363996,116960.0,116950.0,0.02948194]
[1758055159092,0.17363996,116960.0,116950.0,0.38724346]
[1758055159360,0.17363996,116960.0,116950.0,0.20049519]
[1758055159595,0.17363996,116960.0,116950.0,0.55825671]
[1758055159864,0.17463996,116960.0,116950.0,0.55825671]
[1758055160290,0.17363996,116960.0,116950.0,0.55825671]
[1758055160549,0.17199863,116960.0,116950.0,0.55825671]
[1758055160948,0.17499863,116960.0,116950.0,0.55825671]
[1758055161191,0.17199863,116960.0,116950.0,0.55825671]
[1758055161619,0.17399863,116960.0,116950.0,0.55825671]
[1758055163644,0.17399863,116960.0,116950.0,0.82929671]
[1758055163860,0.17399863,116960.0,116950.0,0.55825671]
[1758055164082,0.17399863,116960.0,116950.0,0.02948194]
[1758055164248,0.17399863,116960.0,116950.0,0.38724346]
[1758055168086,0.17399863,116960.0,116950.0,0.02948194]
[1758055168311,0.17399863,116960.0,116950.0,0.38724346]
[1758055169127,0.17399863,116960.0,116950.0,0.55825671]
[1758055170533,0.003,116960.0,116950.0,0.55825671]
[1758055171977,0.003,116960.0,116950.0,0.58840861]
[1758055173816,0.003,116960.0,116950.0,1.03267158]
[1758055174570,0.003,116960.0,116950.0,1.05835822]
[1758055174750,0.002,116960.0,116950.0,1.05835822]
[1758055175016,4e-05,116980.0,116970.0,0.20113591]
[1758055175207,0.17100939,116980.0,116970.0,0.82941743]
[1758055175470,0.17100939,116980.0,116970.0,0.83150743]
[1758055175705,0.17100939,116980.0,116970.0,0.85891743]
[1758055175919,0.17100939,116980.0,116970.0,0.85901743]
[1758055177378,4e-05,116980.0,116970.0,0.85901743]
[1758055177588,0.00204,116980.0,116970.0,0.94551888]
[1758055178487,0.00304,116980.0,116970.0,0.94551888]
[1758055178904,0.00304,116980.0,116970.0,1.02763888]
[1758055180257,0.00304,116980.0,116970.0,0.66987736]
[1758055180469,0.00304,116980.0,116970.0,1.02763888]
[1758055184291,0.00304,116980.0,116970.0,0.75711888]
[1758055184488,0.00304,116980.0,116970.0,1.02739888]
[1758055184736,0.00304,116980.0,116970.0,1.02735888]
[1758055184945,0.00304,116980.0,116970.0,0.75711888]
[1758055185405,0.00304,116980.0,116970.0,1.02735888]
[1758055188634,0.00304,116980.0,116970.0,0.66959736]
[1758055188818,0.00304,116980.0,116970.0,1.02735888]
[1758055190213,0.00204,116980.0,116970.0,1.02735888]
[1758055190412,0.00304,116980.0,116970.0,1.02735888]
[1758055190666,0.00104,116980.0,116970.0,1.02735888]
[1758055190885,0.00204,116980.0,116970.0,1.02735888]
[1758055191071,0.00104,116980.0,116970.0,1.02735888]
[1758055192266,0.00104,116980.0,116970.0,0.75711888]
[1758055192510,0.00104,116980.0,116970.0,1.02707888]
[1758055192926,0.00104,116980.0,116970.0,1.02699888]
[1758055197535,0.00104,116980.0,116970.0,1.02679888]
[1758055197886,0.00104,116980.0,116970.0,0.78279943]
[1758055198118,0.00104,116980.0,116970.0,1.05247943]
[1758055202594,0.00104,116980.0,116970.0,1.45247943]
[1758055203315,4e-05,116980.0,116970.0,1.45247943]
[1758055203611,4e-05,116980.0,116970.0,1.45347943]
[1758055203838,4e-05,116980.0,116970.0,2.23948939]
[1758055204070,4e-05,116980.0,116970.0,2.24048939]
[1758055210591,4e-05,116980.0,116970.0,2.64237513]
[1758055210802,4e-05,116980.0,116970.0,2.24048939]
[1758055211250,4e-05,116980.0,116970.0,1.16703791]
[1758055211507,4e-05,116980.0,116970.0,2.24004939]
[1758055214024,4e-05,116980.0,116970.0,1.97080939]
[1758055214246,4e-05,116980.0,116970.0,2.24028939]
[1758055214467,4e-05,116980.0,116970.0,1.97080939]
[1758055214695,4e-05,116980.0,116970.0,2.24024939]
[1758055214950,4e-05,116980.0,116970.0,2.24020939]
[1758055215705,4e-05,116980.0,116970.0,2.30490432]
[1758055222011,4e-05,116980.0,116970.0,2.30466432]
[1758055222445,4e-05,116980.0,116970.0,2.03554432]
[1758055222882,4e-05,116980.0,116970.0,2.30462432]
[1758055226309,4e-05,116980.0,116970.0,2.03554432]
[1758055226507,4e-05,116980.0,116970.0,2.30454432]
[1758055228647,4e-05,116980.0,116970.0,2.30446432]
[1758055228902,4e-05,116980.0,116970.0,2.30442432]
[1758055231565,4e-05,116980.0,116970.0,2.31323897]
[1758055234380,4e-05,116980.0,116970.0,1.50946749]
[1758055234594,4e-05,116980.0,116970.0,2.24850404]
[1758055235494,4e-05,116980.0,116970.0,2.57694404]
[1758055236241,4e-05,116980.0,116970.0,2.17694404]
[1758055236700,4e-05,116980.0,116970.0,2.57694404]
[1758055237119,4e-05,116980.0,116970.0,2.17694404]
[1758055239205,4e-05,116980.0,116970.0,2.17894404]
[1758055239632,4e-05,116980.0,116970.0,2.17866404]
[1758055240926,4e-05,116980.0,116970.0,1.37489256]
[1758055241106,4e-05,116980.0,116970.0,2.17866404]
[1758055244419,4e-05,116980.0,116970.0,2.57866404]
[1758055245793,4e-05,116980.0,116970.0,2.57854404]
[1758055251971,4e-05,116980.0,116970.0,2.17854404]
[1758055254782,4e-05,116980.0,116970.0,1.91006404]
[1758055254912,4e-05,116980.0,116970.0,2.17838404]
[1758055263886,4e-05,116980.0,116970.0,1.73187124]
[1758055267018,4e-05,116980.0,116970.0,1.70619069]
[1758055267416,4e-05,116980.0,116970.0,1.34873201]
[1758055267635,4e-05,116980.0,116970.0,1.70599069]
[1758055268609,4e-05,116980.0,116970.0,1.43787069]
[1758055269036,4e-05,116980.0,116970.0,1.70599069]
[1758055269871,4e-05,116980.0,116970.0,1.42905604]
[1758055270083,4e-05,116980.0,116970.0,1.69717604]
[1758055271286,4e-05,116980.0,116970.0,1.42905604]
[1758055271495,4e-05,116980.0,116970.0,1.69717604]
[1758055272120,4e-05,116980.0,116970.0,1.42905604]
[1758055272301,4e-05,116980.0,116970.0,1.70602501]
[1758055273071,4e-05,116980.0,116970.0,1.69713604]
[1758055275830,4e-05,116980.0,116970.0,1.70632659]
[1758055281211,4e-05,116980.0,116970.0,1.37788659]
[1758055285414,4e-05,116980.0,116970.0,1.02062791]
[1758055285633,4e-05,116980.0,116970.0,1.37788659]
[1758055297507,4e-05,116980.0,116970.0,1.10980659]
[1758055297752,4e-05,116980.0,116970.0,1.40387835]
[1758055319057,4e-05,116980.0,116970.0,1.40351835]
[1758055320112,4e-05,116980.0,116970.0,1.13591835]
[1758055320326,4e-05,116980.0,116970.0,1.40343835]
[1758055321011,4e-05,116980.0,116970.0,1.13591835]
[1758055321200,4e-05,116980.0,116970.0,1.40343835]
[1758055321609,4e-05,116980.0,116970.0,1.40340835]
[1758055323434,4e-05,116980.0,116970.0,1.37864835]
[1758055323562,4e-05,116980.0,116970.0,1.40155835]
[1758055325188,4e-05,116980.0,116970.0,1.40143835]
[1758055325834,4e-05,116980.0,116970.0,1.84818025]
[1758055328724,4e-05,116980.0,116970.0,1.04409967]
[1758055328948,4e-05,116980.0,116970.0,1.84810025]
[1758055330190,0.00131,116980.0,116970.0,1.02118967]
[1758055330407,0.00131,116980.0,116970.0,1.3975082]
[1758055330850,0.00131,116980.0,116970.0,1.4204482]
[1758055332312,4e-05,116980.0,116970.0,1.4204482]
[1758055337245,4e-05,116980.0,116970.0,1.82244849]
[1758055338328,4e-05,116980.0,116970.0,1.4204482]
[1758055338839,0.17100939,116980.0,116970.0,1.4204482]
[1758055339017,4e-05,116980.0,116970.0,1.4204482]
[1758055339859,4e-05,116980.0,116970.0,1.3975082]
[1758055340922,0.17227939,116980.0,116970.0,0.37385736]
[1758055341153,0.19332939,116980.0,116970.0,0.47015335]
[1758055341399,0.21901427,116980.0,116970.0,0.47015335]
[1758055341614,0.21901427,116980.0,116970.0,0.87215364]
[1758055342303,0.21901427,116980.0,116970.0,1.04511765]
[1758055342541,0.21901427,116980.0,116970.0,0.87215364]
[1758055342776,0.19796427,116980.0,116970.0,0.87215364]
[1758055344298,0.19796427,116980.0,116970.0,0.47015335]
[1758055344509,0.19796427,116980.0,116970.0,0.87215364]
[1758055345458,0.21901427,116980.0,116970.0,0.87215364]
[1758055351763,0.21901427,116980.0,116970.0,0.78565219]
[1758055357077,0.21901427,116980.0,116970.0,0.9566362]
[1758055362550,0.21901427,116980.0,116970.0,0.8745162]
[1758055363075,0.21901427,116980.0,116970.0,0.8766162]
[1758055363292,0.19796427,116980.0,116970.0,0.8795662]
[1758055363446,0.19796427,116980.0,116970.0,0.9035562]
[1758055363836,0.19796427,116980.0,116970.0,0.49860591]
[1758055364283,0.19796427,116980.0,116970.0,0.9006062]
[1758055364804,0.19796427,116980.0,116970.0,0.8766162]
[1758055366489,0.19796427,116980.0,116970.0,0.47461591]
[1758055366720,0.19796427,116980.0,116970.0,0.8766162]
[1758055370807,0.19796427,116980.0,116970.0,0.47461591]
[1758055371019,0.19796427,116980.0,116970.0,0.9035562]
[1758055372482,0.19796427,116980.0,116970.0,0.8766162]
[1758055373503,0.19796427,116980.0,116970.0,0.47461591]
[1758055373739,0.19796427,116980.0,116970.0,0.8766162]
[1758055374691,0.19796427,116980.0,116970.0,0.8795662]
[1758055374845,0.19796427,116980.0,116970.0,0.9023562]
[1758055382730,0.19796427,116980.0,116970.0,0.50035591]
[1758055382975,0.19796427,116980.0,116970.0,0.9023562]
[1758055383466,0.19669427,116980.0,116970.0,0.9023562]
[1758055384865,0.19796427,116980.0,116970.0,0.8994062]
[1758055385080,0.19669427,116980.0,116970.0,0.9023562]
[1758055385879,0.19669427,116980.0,116970.0,0.85777366]
[1758055386826,0.19669427,116980.0,116970.0,0.41950965]
[1758055387069,0.19669427,116980.0,116970.0,0.68678965]